[Event "Titled Tuesday Blitz September 27 Late 2022"]
[White "Thomforde-Toates, Noah"]
[Black "Tristan, Leonardo"]
[WhiteFideId "30951992"]
[BlackFideId "113816"]
[WhiteElo "2590"]
[BlackElo "2404"]
[Result "1-0"]
[Round "09"]
[TimeControl "180+1"]
[Date "2022.09.28"]
[WhiteClock "0:00:17"]
[BlackClock "0:00:11"]

1. c4 {[%clk 0:02:45]}  e6 {[%clk 0:02:59]} 2. b3 {[%clk 0:02:43]}  d5 {[%clk 0:02:59]} 3. Bb2 {[%clk 0:02:41]}  Nf6 {[%clk 0:02:59]} 4. e3 {[%clk 0:02:42]}  c5 {[%clk 0:03:00]} 5. Nf3 {[%clk 0:02:42]}  Nc6 {[%clk 0:03:00]} 6. cxd5 {[%clk 0:02:42]}  exd5 {[%clk 0:03:01]} 7. Bb5 {[%clk 0:02:42]}  Bd6 {[%clk 0:03:01]} 8. h3 {[%clk 0:02:40]}  O-O {[%clk 0:03:01]} 9. O-O {[%clk 0:02:40]}  Bc7 {[%clk 0:02:38]} 10. d4 {[%clk 0:02:34]}  cxd4 {[%clk 0:02:37]} 11. Bxc6 {[%clk 0:02:30]}  bxc6 {[%clk 0:02:36]} 12. Qxd4 {[%clk 0:02:30]}  Re8 {[%clk 0:02:33]} 13. Nc3 {[%clk 0:02:30]}  Bb6 {[%clk 0:02:25]} 14. Qh4 {[%clk 0:02:29]}  h6 {[%clk 0:02:25]} 15. Rfd1 {[%clk 0:02:26]}  Bf5 {[%clk 0:02:23]} 16. Rac1 {[%clk 0:02:26]}  Qd6 {[%clk 0:02:07]} 17. Ne2 {[%clk 0:02:12]}  Ne4 {[%clk 0:02:02]} 18. Ned4 {[%clk 0:01:58]}  Bd7 {[%clk 0:02:02]} 19. Nd2 {[%clk 0:01:50]}  Bc7 {[%clk 0:01:44]} 20. N4f3 {[%clk 0:01:33]}  Bd8 {[%clk 0:01:37]} 21. Nxe4 {[%clk 0:01:31]}  Qg6 {[%clk 0:01:30]} 22. Qg3 {[%clk 0:01:07]}  Rxe4 {[%clk 0:01:25]} 23. Qxg6 {[%clk 0:01:07]}  fxg6 {[%clk 0:01:26]} 24. Ne5 {[%clk 0:01:07]}  Bf6 {[%clk 0:01:13]} 25. Nxd7 {[%clk 0:01:06]}  Bxb2 {[%clk 0:01:14]} 26. Rxc6 {[%clk 0:01:06]}  d4 {[%clk 0:01:14]} 27. Nc5 {[%clk 0:00:57]}  Rh4 {[%clk 0:01:08]} 28. e4 {[%clk 0:00:45]}  Re8 {[%clk 0:00:58]} 29. Nd3 {[%clk 0:00:38]}  Bc3 {[%clk 0:00:57]} 30. f3 {[%clk 0:00:36]}  Kh7 {[%clk 0:00:56]} 31. Kh2 {[%clk 0:00:24]}  Rh5 {[%clk 0:00:46]} 32. Nf4 {[%clk 0:00:23]}  Ra5 {[%clk 0:00:45]} 33. a4 {[%clk 0:00:21]}  Rb8 {[%clk 0:00:46]} 34. Rb1 {[%clk 0:00:15]}  Rxa4 {[%clk 0:00:46]} 35. bxa4 {[%clk 0:00:14]}  Rxb1 {[%clk 0:00:45]} 36. Ne2 {[%clk 0:00:13]}  Ba1 {[%clk 0:00:23]} 37. Rc1 {[%clk 0:00:12]}  Rb2 {[%clk 0:00:14]} 38. Rxa1 {[%clk 0:00:11]}  Rxe2 {[%clk 0:00:15]} 39. Rd1 {[%clk 0:00:12]}  Ra2 {[%clk 0:00:14]} 40. Rxd4 {[%clk 0:00:12]}  g5 {[%clk 0:00:15]} 41. Rc4 {[%clk 0:00:10]}  Kg6 {[%clk 0:00:15]} 42. Kg3 {[%clk 0:00:10]}  h5 {[%clk 0:00:15]} 43. Rc6+ {[%clk 0:00:10]}  Kf7 {[%clk 0:00:16]} 44. Ra6 {[%clk 0:00:11]}  h4+ {[%clk 0:00:15]} 45. Kh2 {[%clk 0:00:12]}  Ke7 {[%clk 0:00:15]} 46. Rxa7+ {[%clk 0:00:12]}  Kf6 {[%clk 0:00:15]} 47. Ra6+ {[%clk 0:00:13]}  Ke5 {[%clk 0:00:13]} 48. Ra5+ {[%clk 0:00:13]}  Kf6 {[%clk 0:00:13]} 49. Rf5+ {[%clk 0:00:13]}  Kg6 {[%clk 0:00:12]} 50. a5 {[%clk 0:00:14]}  Kh5 {[%clk 0:00:12]} 51. f4 {[%clk 0:00:14]}  Kh6 {[%clk 0:00:10]} 52. Rxg5 {[%clk 0:00:14]}  g6 {[%clk 0:00:10]} 53. Rb5 {[%clk 0:00:14]}  Ra4 {[%clk 0:00:11]} 54. Re5 {[%clk 0:00:13]}  Kg7 {[%clk 0:00:09]} 55. Kg1 {[%clk 0:00:14]}  Ra2 {[%clk 0:00:09]} 56. Kf1 {[%clk 0:00:14]}  Kh6 {[%clk 0:00:09]} 57. Re6 {[%clk 0:00:14]}  Kh5 {[%clk 0:00:09]} 58. a6 {[%clk 0:00:13]}  Rb2 {[%clk 0:00:05]} 59. Re7 {[%clk 0:00:13]}  Kh6 {[%clk 0:00:05]} 60. a7 {[%clk 0:00:13]}  Ra2 {[%clk 0:00:06]} 61. Ke1 {[%clk 0:00:12]}  g5 {[%clk 0:00:05]} 62. f5 {[%clk 0:00:12]}  g4 {[%clk 0:00:05]} 63. Re6+ {[%clk 0:00:10]}  Kg5 {[%clk 0:00:06]} 64. hxg4 {[%clk 0:00:10]}  Kf4 {[%clk 0:00:06]} 65. Kd1 {[%clk 0:00:10]}  Ke3 {[%clk 0:00:07]} 66. Kc1 {[%clk 0:00:10]}  Kf2 {[%clk 0:00:07]} 67. Re7 {[%clk 0:00:10]}  Kxg2 {[%clk 0:00:07]} 68. f6 {[%clk 0:00:10]}  h3 {[%clk 0:00:08]} 69. Rh7 {[%clk 0:00:11]}  h2 {[%clk 0:00:09]} 70. Rxh2+ {[%clk 0:00:11]}  Kxh2 {[%clk 0:00:09]} 71. f7 {[%clk 0:00:12]}  Rf2 {[%clk 0:00:07]} 72. a8=Q {[%clk 0:00:12]}  Rxf7 {[%clk 0:00:06]} 73. Qb8+ {[%clk 0:00:12]}  Kh3 {[%clk 0:00:06]} 74. Qe5 {[%clk 0:00:12]}  Rf1+ {[%clk 0:00:05]} 75. Kd2 {[%clk 0:00:12]}  Kxg4 {[%clk 0:00:06]} 76. Ke3 {[%clk 0:00:12]}  Re1+ {[%clk 0:00:06]} 77. Kd4 {[%clk 0:00:12]}  Rd1+ {[%clk 0:00:06]} 78. Kc5 {[%clk 0:00:13]}  Kf3 {[%clk 0:00:07]} 79. Qf5+ {[%clk 0:00:12]}  Ke3 {[%clk 0:00:07]} 80. e5 {[%clk 0:00:13]}  Rc1+ {[%clk 0:00:08]} 81. Kd6 {[%clk 0:00:13]}  Rd1+ {[%clk 0:00:08]} 82. Ke7 {[%clk 0:00:13]}  Kd4 {[%clk 0:00:09]} 83. e6 {[%clk 0:00:14]}  Ra1 {[%clk 0:00:08]} 84. Qf6+ {[%clk 0:00:14]}  Kd5 {[%clk 0:00:08]} 85. Qxa1 {[%clk 0:00:15]}  Kc6 {[%clk 0:00:09]} 86. Kf7 {[%clk 0:00:15]}  Kb7 {[%clk 0:00:09]} 87. Qc3 {[%clk 0:00:15]}  Ka8 {[%clk 0:00:10]} 88. Qb3 {[%clk 0:00:16]}  Ka7 {[%clk 0:00:10]} 89. e7 {[%clk 0:00:16]}  Ka6 {[%clk 0:00:10]} 90. e8=Q {[%clk 0:00:16]}  Ka7 {[%clk 0:00:11]} 91. Qea4# {[%clk 0:00:17]} 1-0


[Site "https://www.chess.com"]

[Event "Titled Tuesday Blitz September 27 Late 2022"]
[White "Yano, William Jorge Froes"]
[Black "Bykov, Egor"]
[WhiteFideId "2112949"]
[BlackFideId "34115290"]
[WhiteElo "2122"]
[BlackElo "2192"]
[Result "0-1"]
[Round "09"]
[TimeControl "180+1"]
[Date "2022.09.28"]
[WhiteClock "0:00:01"]
[BlackClock "0:00:10"]

1. e4 {[%clk 0:03:00]}  c5 {[%clk 0:02:53]} 2. Nf3 {[%clk 0:03:00]}  d6 {[%clk 0:02:52]} 3. Bb5+ {[%clk 0:03:01]}  Bd7 {[%clk 0:02:51]} 4. Bxd7+ {[%clk 0:03:01]}  Nxd7 {[%clk 0:02:51]} 5. O-O {[%clk 0:03:02]}  Ngf6 {[%clk 0:02:44]} 6. Qe2 {[%clk 0:02:56]}  g6 {[%clk 0:02:40]} 7. c3 {[%clk 0:02:56]}  Bg7 {[%clk 0:02:40]} 8. d4 {[%clk 0:02:55]}  cxd4 {[%clk 0:02:38]} 9. cxd4 {[%clk 0:02:56]}  e5 {[%clk 0:02:10]} 10. Rd1 {[%clk 0:02:31]}  exd4 {[%clk 0:02:07]} 11. Nxd4 {[%clk 0:02:29]}  O-O {[%clk 0:01:49]} 12. Nc3 {[%clk 0:02:26]}  a6 {[%clk 0:01:40]} 13. Bf4 {[%clk 0:02:23]}  Qe7 {[%clk 0:01:38]} 14. Nf3 {[%clk 0:02:15]}  Ne5 {[%clk 0:01:30]} 15. Bg5 {[%clk 0:02:14]}  Qe6 {[%clk 0:01:26]} 16. Bxf6 {[%clk 0:02:09]}  Qxf6 {[%clk 0:01:20]} 17. Nd5 {[%clk 0:02:07]}  Nxf3+ {[%clk 0:01:20]} 18. Qxf3 {[%clk 0:01:54]}  Qxb2 {[%clk 0:01:10]} 19. Rab1 {[%clk 0:01:44]}  Qxa2 {[%clk 0:01:00]} 20. Rxb7 {[%clk 0:01:44]}  Rab8 {[%clk 0:00:52]} 21. Rc7 {[%clk 0:01:41]}  Rb1 {[%clk 0:00:48]} 22. g3 {[%clk 0:01:16]}  Qa1 {[%clk 0:00:29]} 23. Rxb1 {[%clk 0:01:14]}  Qxb1+ {[%clk 0:00:30]} 24. Kg2 {[%clk 0:01:14]}  Qb5 {[%clk 0:00:28]} 25. h4 {[%clk 0:01:00]}  h5 {[%clk 0:00:27]} 26. Qa3 {[%clk 0:00:54]}  Ra8 {[%clk 0:00:20]} 27. Qxd6 {[%clk 0:00:49]}  a5 {[%clk 0:00:20]} 28. Qe7 {[%clk 0:00:17]}  Rf8 {[%clk 0:00:17]} 29. Rb7 {[%clk 0:00:15]}  Qc4 {[%clk 0:00:16]} 30. Rc7 {[%clk 0:00:14]}  Qd4 {[%clk 0:00:16]} 31. Ra7 {[%clk 0:00:12]}  a4 {[%clk 0:00:16]} 32. Qd7 {[%clk 0:00:11]}  Qxe4+ {[%clk 0:00:16]} 33. Kh2 {[%clk 0:00:11]}  Qd4 {[%clk 0:00:14]} 34. Rxa4 {[%clk 0:00:08]}  Qxf2+ {[%clk 0:00:14]} 35. Kh3 {[%clk 0:00:09]}  Qf1+ {[%clk 0:00:13]} 36. Kh2 {[%clk 0:00:09]}  Qe2+ {[%clk 0:00:14]} 37. Kh3 {[%clk 0:00:09]}  Be5 {[%clk 0:00:14]} 38. Ra3 {[%clk 0:00:07]}  Qf1+ {[%clk 0:00:12]} 39. Kh2 {[%clk 0:00:07]}  Bd4 {[%clk 0:00:12]} 40. Ne7+ {[%clk 0:00:05]}  Kh7 {[%clk 0:00:11]} 41. Qxd4 {[%clk 0:00:06]}  Rb8 {[%clk 0:00:11]} 42. Re3 {[%clk 0:00:05]}  Rb1 {[%clk 0:00:10]} 43. g4 {[%clk 0:00:01]}  Qg1+ {[%clk 0:00:08]} 44. Kh3 {[%clk 0:00:02]}  hxg4+ {[%clk 0:00:09]} 45. Qxg4 {[%clk 0:00:01]}  Qxe3+ {[%clk 0:00:09]} 46. Qg3 {[%clk 0:00:01]}  Rh1+ {[%clk 0:00:10]} 47. Kg4 {[%clk 0:00:01]}  Rg1 {[%clk 0:00:10]} 0-1


[Site "https://www.chess.com"]

[Event "Titled Tuesday Blitz September 27 Late 2022"]
[White "Yurovskykh, Oleksandr"]
[Black "Pinero Rodriguez, Carlos Jose"]
[WhiteFideId "14134020"]
[BlackFideId "3901726"]
[WhiteElo "2303"]
[BlackElo "2053"]
[Result "0-1"]
[Round "09"]
[TimeControl "180+1"]
[Date "2022.09.28"]
[WhiteClock "0:00:01"]
[BlackClock "0:00:10"]

1. d4 {[%clk 0:03:00]}  Nf6 {[%clk 0:02:52]} 2. Nf3 {[%clk 0:02:59]}  e6 {[%clk 0:02:51]} 3. Bf4 {[%clk 0:02:59]}  b6 {[%clk 0:02:51]} 4. e3 {[%clk 0:02:59]}  Bb7 {[%clk 0:02:50]} 5. Bd3 {[%clk 0:03:00]}  Nh5 {[%clk 0:02:49]} 6. Bg5 {[%clk 0:02:53]}  Be7 {[%clk 0:02:47]} 7. Bxe7 {[%clk 0:02:53]}  Qxe7 {[%clk 0:02:47]} 8. Nbd2 {[%clk 0:02:48]}  Nf6 {[%clk 0:02:44]} 9. Qe2 {[%clk 0:02:47]}  O-O {[%clk 0:02:43]} 10. O-O {[%clk 0:02:46]}  d6 {[%clk 0:02:40]} 11. a4 {[%clk 0:02:43]}  a5 {[%clk 0:02:37]} 12. c3 {[%clk 0:02:43]}  e5 {[%clk 0:02:35]} 13. dxe5 {[%clk 0:02:35]}  dxe5 {[%clk 0:02:34]} 14. e4 {[%clk 0:02:35]}  Nbd7 {[%clk 0:02:27]} 15. Rfe1 {[%clk 0:01:52]}  Rad8 {[%clk 0:02:25]} 16. Bc2 {[%clk 0:01:39]}  Nh5 {[%clk 0:02:22]} 17. g3 {[%clk 0:01:38]}  Nhf6 {[%clk 0:02:18]} 18. Rab1 {[%clk 0:01:22]}  Rfe8 {[%clk 0:02:17]} 19. b4 {[%clk 0:01:22]}  Ra8 {[%clk 0:02:13]} 20. Nc4 {[%clk 0:01:17]}  Bc6 {[%clk 0:02:11]} 21. bxa5 {[%clk 0:01:14]}  bxa5 {[%clk 0:02:07]} 22. Nfd2 {[%clk 0:01:11]}  Nc5 {[%clk 0:02:03]} 23. Ra1 {[%clk 0:01:04]}  Red8 {[%clk 0:01:59]} 24. f3 {[%clk 0:01:01]}  Nfd7 {[%clk 0:01:53]} 25. Qe3 {[%clk 0:00:59]}  h6 {[%clk 0:01:50]} 26. Kg2 {[%clk 0:00:49]}  Ne6 {[%clk 0:01:49]} 27. Nb3 {[%clk 0:00:44]}  Ndc5 {[%clk 0:01:46]} 28. Nxe5 {[%clk 0:00:22]}  Bxa4 {[%clk 0:01:37]} 29. Nxc5 {[%clk 0:00:20]}  Nxc5 {[%clk 0:01:31]} 30. Bxa4 {[%clk 0:00:20]}  Qxe5 {[%clk 0:01:28]} 31. Bc2 {[%clk 0:00:20]}  a4 {[%clk 0:01:26]} 32. f4 {[%clk 0:00:19]}  Qd6 {[%clk 0:01:22]} 33. Kf2 {[%clk 0:00:15]}  Qc6 {[%clk 0:01:22]} 34. Red1 {[%clk 0:00:13]}  Rxd1 {[%clk 0:01:18]} 35. Rxd1 {[%clk 0:00:14]}  a3 {[%clk 0:01:15]} 36. Ra1 {[%clk 0:00:14]}  a2 {[%clk 0:00:58]} 37. Qd4 {[%clk 0:00:14]}  Qb6 {[%clk 0:00:55]} 38. Kf3 {[%clk 0:00:01]}  Qb2 {[%clk 0:00:52]} 39. Qd1 {[%clk 0:00:01]}  Qxc3+ {[%clk 0:00:52]} 40. Kg4 {[%clk 0:00:01]}  g6 {[%clk 0:00:40]} 41. e5 {[%clk 0:00:02]}  h5+ {[%clk 0:00:15]} 42. Kh4 {[%clk 0:00:02]}  Ne6 {[%clk 0:00:11]} 43. Bb3 {[%clk 0:00:02]}  Rd8 {[%clk 0:00:11]} 44. Bxe6 {[%clk 0:00:01]}  Rxd1 {[%clk 0:00:10]} 45. Rxd1 {[%clk 0:00:01]}  a1=Q {[%clk 0:00:10]} 0-1


[Site "https://www.chess.com"]

[Event "Titled Tuesday Blitz September 27 Late 2022"]
[White "Zhigalko, Sergei"]
[Black "Rosen, Eric"]
[WhiteFideId "13502956"]
[BlackFideId "2032562"]
[WhiteElo "2662"]
[BlackElo "2362"]
[Result "1-0"]
[Round "09"]
[TimeControl "180+1"]
[Date "2022.09.28"]
[WhiteClock "0:00:12"]
[BlackClock "0:00:03"]

1. e4 {[%clk 0:03:00]}  e5 {[%clk 0:02:34]} 2. Nf3 {[%clk 0:03:00]}  Nf6 {[%clk 0:02:33]} 3. d4 {[%clk 0:03:00]}  Nxe4 {[%clk 0:02:29]} 4. Bd3 {[%clk 0:03:00]}  Nc6 {[%clk 0:02:28]} 5. d5 {[%clk 0:02:51]}  Nf6 {[%clk 0:02:21]} 6. dxc6 {[%clk 0:02:49]}  e4 {[%clk 0:02:21]} 7. cxb7 {[%clk 0:02:50]}  Bxb7 {[%clk 0:02:20]} 8. Be2 {[%clk 0:02:51]}  exf3 {[%clk 0:02:17]} 9. Bxf3 {[%clk 0:02:52]}  Qe7+ {[%clk 0:02:09]} 10. Be3 {[%clk 0:02:45]}  Qb4+ {[%clk 0:01:58]} 11. Nd2 {[%clk 0:02:44]}  Bxf3 {[%clk 0:00:52]} 12. Qxf3 {[%clk 0:02:43]}  Rb8 {[%clk 0:00:50]} 13. O-O {[%clk 0:02:27]}  Qb7 {[%clk 0:00:48]} 14. Qe2 {[%clk 0:02:10]}  Be7 {[%clk 0:00:48]} 15. Bd4 {[%clk 0:01:54]}  Kf8 {[%clk 0:00:43]} 16. Rfe1 {[%clk 0:01:48]}  Re8 {[%clk 0:00:26]} 17. Qd3 {[%clk 0:01:13]}  h5 {[%clk 0:00:24]} 18. h3 {[%clk 0:01:12]}  Rh6 {[%clk 0:00:22]} 19. Nf3 {[%clk 0:00:49]}  Rg6 {[%clk 0:00:14]} 20. Rad1 {[%clk 0:00:30]}  Qd5 {[%clk 0:00:04]} 21. Bxf6 {[%clk 0:00:21]}  Qxd3 {[%clk 0:00:02]} 22. Bxe7+ {[%clk 0:00:21]}  Rxe7 {[%clk 0:00:02]} 23. Rxd3 {[%clk 0:00:20]}  Rxe1+ {[%clk 0:00:03]} 24. Nxe1 {[%clk 0:00:21]}  Rb6 {[%clk 0:00:01]} 25. b3 {[%clk 0:00:20]}  d6 {[%clk 0:00:02]} 26. Nf3 {[%clk 0:00:20]}  g6 {[%clk 0:00:01]} 27. Rc3 {[%clk 0:00:20]}  c5 {[%clk 0:00:01]} 28. Rd3 {[%clk 0:00:20]}  Ke7 {[%clk 0:00:01]} 29. Nd2 {[%clk 0:00:20]}  Ra6 {[%clk 0:00:01]} 30. a4 {[%clk 0:00:20]}  Ke6 {[%clk 0:00:01]} 31. Re3+ {[%clk 0:00:20]}  Kf6 {[%clk 0:00:01]} 32. Rf3+ {[%clk 0:00:20]}  Ke6 {[%clk 0:00:01]} 33. Re3+ {[%clk 0:00:21]}  Kf6 {[%clk 0:00:01]} 34. Ne4+ {[%clk 0:00:21]}  Ke5 {[%clk 0:00:01]} 35. Nc3+ {[%clk 0:00:21]}  Kf6 {[%clk 0:00:02]} 36. Nd5+ {[%clk 0:00:21]}  Kg5 {[%clk 0:00:01]} 37. f4+ {[%clk 0:00:19]}  Kh6 {[%clk 0:00:01]} 38. c4 {[%clk 0:00:17]}  Kg7 {[%clk 0:00:02]} 39. Re7 {[%clk 0:00:16]}  h4 {[%clk 0:00:02]} 40. Rc7 {[%clk 0:00:15]}  Kh6 {[%clk 0:00:02]} 41. Kf2 {[%clk 0:00:15]}  g5 {[%clk 0:00:02]} 42. f5 {[%clk 0:00:12]}  Kg7 {[%clk 0:00:01]} 43. Kf3 {[%clk 0:00:13]}  Ra5 {[%clk 0:00:02]} 44. Kg4 {[%clk 0:00:13]}  Kf8 {[%clk 0:00:01]} 45. Kxg5 {[%clk 0:00:12]}  Ke8 {[%clk 0:00:02]} 46. Kf6 {[%clk 0:00:12]}  Kd8 {[%clk 0:00:02]} 47. Kxf7 {[%clk 0:00:11]}  Ra6 {[%clk 0:00:03]} 48. Ke6 {[%clk 0:00:11]}  Rb6 {[%clk 0:00:02]} 49. Rd7+ {[%clk 0:00:10]}  Kc8 {[%clk 0:00:02]} 50. Nxb6+ {[%clk 0:00:11]}  axb6 {[%clk 0:00:03]} 51. f6 {[%clk 0:00:12]} 1-0


[Site "https://www.chess.com"]

[Event "Titled Tuesday Blitz September 27 Late 2022"]
[White "Abdyzhapar, Asylbek"]
[Black "Rastbod, Ali"]
[WhiteFideId "13800337"]
[BlackFideId "12567477"]
[WhiteElo "2323"]
[BlackElo "2191"]
[Result "1-0"]
[Round "10"]
[TimeControl "180+1"]
[Date "2022.09.27"]
[WhiteClock "0:00:34"]
[BlackClock "0:00:03"]

1. e4 {[%clk 0:03:00]}  Nc6 {[%clk 0:02:56]} 2. d4 {[%clk 0:02:59]}  d5 {[%clk 0:02:56]} 3. exd5 {[%clk 0:02:59]}  Qxd5 {[%clk 0:02:57]} 4. c3 {[%clk 0:02:59]}  e5 {[%clk 0:02:57]} 5. Nf3 {[%clk 0:02:54]}  exd4 {[%clk 0:02:39]} 6. cxd4 {[%clk 0:02:54]}  Bb4+ {[%clk 0:02:40]} 7. Nc3 {[%clk 0:02:53]}  Bg4 {[%clk 0:02:40]} 8. Be2 {[%clk 0:02:52]}  Bxf3 {[%clk 0:02:36]} 9. Bxf3 {[%clk 0:02:52]}  Qc4 {[%clk 0:02:37]} 10. Be3 {[%clk 0:02:21]}  Nf6 {[%clk 0:02:27]} 11. Be2 {[%clk 0:02:16]}  Bxc3+ {[%clk 0:02:26]} 12. bxc3 {[%clk 0:02:16]}  Qxc3+ {[%clk 0:02:27]} 13. Kf1 {[%clk 0:02:16]}  O-O {[%clk 0:02:27]} 14. Rc1 {[%clk 0:02:15]}  Qa5 {[%clk 0:02:23]} 15. Rc5 {[%clk 0:02:13]}  Qxa2 {[%clk 0:02:23]} 16. g4 {[%clk 0:02:10]}  Rad8 {[%clk 0:02:19]} 17. Kg2 {[%clk 0:01:53]}  Nd5 {[%clk 0:01:58]} 18. Re1 {[%clk 0:01:37]}  Nxe3+ {[%clk 0:01:32]} 19. fxe3 {[%clk 0:01:37]}  Rfe8 {[%clk 0:01:29]} 20. Qd3 {[%clk 0:01:34]}  Ne5 {[%clk 0:01:05]} 21. Qe4 {[%clk 0:01:29]}  Nd7 {[%clk 0:00:57]} 22. Qd5 {[%clk 0:01:20]}  Qxd5+ {[%clk 0:00:53]} 23. Rxd5 {[%clk 0:01:20]}  Rxe3 {[%clk 0:00:50]} 24. Kf2 {[%clk 0:01:20]}  Re7 {[%clk 0:00:49]} 25. Rb1 {[%clk 0:01:14]}  Rb8 {[%clk 0:00:42]} 26. Rdb5 {[%clk 0:01:09]}  Nb6 {[%clk 0:00:42]} 27. Bf3 {[%clk 0:01:08]}  Rd7 {[%clk 0:00:37]} 28. d5 {[%clk 0:01:08]}  g6 {[%clk 0:00:34]} 29. Ra5 {[%clk 0:01:07]}  a6 {[%clk 0:00:35]} 30. Rc5 {[%clk 0:01:07]}  Kf8 {[%clk 0:00:19]} 31. h4 {[%clk 0:01:07]}  Ke7 {[%clk 0:00:18]} 32. d6+ {[%clk 0:00:53]}  Kxd6 {[%clk 0:00:17]} 33. Rc3 {[%clk 0:00:50]}  Ke7 {[%clk 0:00:17]} 34. g5 {[%clk 0:00:49]}  Kf8 {[%clk 0:00:17]} 35. Bg4 {[%clk 0:00:49]}  Re7 {[%clk 0:00:15]} 36. Bf3 {[%clk 0:00:48]}  Kg7 {[%clk 0:00:15]} 37. h5 {[%clk 0:00:47]}  gxh5 {[%clk 0:00:16]} 38. Bxh5 {[%clk 0:00:47]}  Nd5 {[%clk 0:00:16]} 39. Rc5 {[%clk 0:00:47]}  c6 {[%clk 0:00:16]} 40. Bf3 {[%clk 0:00:47]}  Rd8 {[%clk 0:00:16]} 41. Rc4 {[%clk 0:00:46]}  Rd6 {[%clk 0:00:13]} 42. Rh1 {[%clk 0:00:45]}  h6 {[%clk 0:00:07]} 43. Rg4 {[%clk 0:00:42]}  hxg5 {[%clk 0:00:07]} 44. Rxg5+ {[%clk 0:00:42]}  Rg6 {[%clk 0:00:07]} 45. Rgh5 {[%clk 0:00:42]}  Kf6 {[%clk 0:00:08]} 46. R1h4 {[%clk 0:00:39]}  Re5 {[%clk 0:00:07]} 47. Rh7 {[%clk 0:00:38]}  Rf5 {[%clk 0:00:07]} 48. Ke2 {[%clk 0:00:38]}  Nf4+ {[%clk 0:00:07]} 49. Kd2 {[%clk 0:00:38]}  Ng2 {[%clk 0:00:05]} 50. Rh3 {[%clk 0:00:35]}  Nf4 {[%clk 0:00:04]} 51. R3h4 {[%clk 0:00:35]}  Rfg5 {[%clk 0:00:02]} 52. Be4 {[%clk 0:00:35]}  Rg3 {[%clk 0:00:01]} 53. Rxf4+ {[%clk 0:00:34]}  Ke5 {[%clk 0:00:02]} 54. Rhh4 {[%clk 0:00:34]}  R6g4 {[%clk 0:00:02]} 55. Rfxg4 {[%clk 0:00:34]}  Ra3 {[%clk 0:00:02]} 56. Bc2 {[%clk 0:00:34]}  f5 {[%clk 0:00:03]} 57. Rg5 {[%clk 0:00:34]} 1-0


[Site "https://www.chess.com"]

[Event "Titled Tuesday Blitz September 27 Late 2022"]
[White "Babazada, Khazar"]
[Black "So, Wesley"]
[WhiteFideId "13413554"]
[BlackFideId "5202213"]
[WhiteElo "2409"]
[BlackElo "2763"]
[Result "0-1"]
[Round "10"]
[TimeControl "180+1"]
[Date "2022.09.27"]
[WhiteClock "0:00:02"]
[BlackClock "0:00:33"]

1. e4 {[%clk 0:03:00]}  c5 {[%clk 0:02:59]} 2. Nf3 {[%clk 0:03:01]}  d6 {[%clk 0:02:59]} 3. d4 {[%clk 0:03:01]}  cxd4 {[%clk 0:03:00]} 4. Nxd4 {[%clk 0:03:02]}  Nf6 {[%clk 0:03:00]} 5. Nc3 {[%clk 0:03:03]}  a6 {[%clk 0:03:01]} 6. Bg5 {[%clk 0:02:58]}  e6 {[%clk 0:03:00]} 7. f4 {[%clk 0:02:58]}  Be7 {[%clk 0:03:00]} 8. Qf3 {[%clk 0:02:58]}  Nbd7 {[%clk 0:02:59]} 9. O-O-O {[%clk 0:02:58]}  Qc7 {[%clk 0:02:59]} 10. g4 {[%clk 0:02:58]}  h6 {[%clk 0:02:59]} 11. Bxf6 {[%clk 0:02:57]}  Bxf6 {[%clk 0:02:59]} 12. h4 {[%clk 0:02:57]}  g5 {[%clk 0:02:56]} 13. hxg5 {[%clk 0:02:26]}  hxg5 {[%clk 0:02:57]} 14. Rxh8+ {[%clk 0:02:26]}  Bxh8 {[%clk 0:02:58]} 15. f5 {[%clk 0:02:27]}  Nf6 {[%clk 0:02:27]} 16. Qh3 {[%clk 0:01:55]}  Bg7 {[%clk 0:02:24]} 17. Nf3 {[%clk 0:01:56]}  Ke7 {[%clk 0:02:06]} 18. Kb1 {[%clk 0:01:55]}  Bd7 {[%clk 0:01:50]} 19. Nxg5 {[%clk 0:01:55]}  b5 {[%clk 0:01:27]} 20. Qg2 {[%clk 0:01:17]}  b4 {[%clk 0:01:21]} 21. Ne2 {[%clk 0:01:17]}  Rc8 {[%clk 0:01:20]} 22. Nf4 {[%clk 0:01:15]}  Qc5 {[%clk 0:01:01]} 23. Nxf7 {[%clk 0:00:48]}  Kxf7 {[%clk 0:00:56]} 24. g5 {[%clk 0:00:48]}  Ng4 {[%clk 0:00:45]} 25. fxe6+ {[%clk 0:00:48]}  Bxe6 {[%clk 0:00:45]} 26. Nxe6 {[%clk 0:00:49]}  Kxe6 {[%clk 0:00:39]} 27. Qxg4+ {[%clk 0:00:47]}  Ke7 {[%clk 0:00:40]} 28. Bd3 {[%clk 0:00:24]}  Qe5 {[%clk 0:00:33]} 29. c3 {[%clk 0:00:24]}  Rxc3 {[%clk 0:00:34]} 30. Qe2 {[%clk 0:00:04]}  b3 {[%clk 0:00:34]} 31. bxc3 {[%clk 0:00:02]}  Qxc3 {[%clk 0:00:34]} 32. e5 {[%clk 0:00:02]}  Bxe5 {[%clk 0:00:33]} 33. axb3 {[%clk 0:00:02]}  Qa1+ {[%clk 0:00:33]} 0-1


[Site "https://www.chess.com"]